bitfinex-derivatives/quotes_ETHF0:USTF0_20250830
["timestamp","ask_amount","ask_price","bid_price","bid_amount"]
[1756552405800,0.68726444,4398.7,4398.6,0.736]
[1756552406707,0.68726444,4398.7,4398.6,0.506]
[1756552406907,0.68726444,4398.7,4398.6,0.736]
[1756552408511,0.68726444,4398.7,4398.6,0.23]
[1756552409914,0.68726444,4398.7,4398.6,0.736]
[1756552410514,0.68726444,4398.7,4398.6,0.506]
[1756552410714,0.68726444,4398.7,4398.6,0.736]
[1756552415021,0.4972,4398.7,4398.6,0.506]
[1756552415316,0.6873261,4398.7,4398.6,0.736]
[1756552417117,0.6873261,4398.7,4398.6,0.506]
[1756552417311,0.6873261,4398.7,4398.6,0.736]
[1756552424021,0.1901261,4398.7,4398.6,0.736]
[1756552424426,0.4922261,4398.7,4398.6,0.736]
[1756552424613,0.6835261,4398.7,4398.6,0.736]
[1756552425633,0.4934,4398.7,4398.6,0.736]
[1756552425831,0.68366594,4398.7,4398.6,0.736]
[1756552426533,0.68366709,4398.7,4398.6,0.736]
[1756552436532,0.68532078,4398.7,4398.6,0.736]
[1756552439240,0.19192078,4398.7,4398.6,0.736]
[1756552441536,0.49402078,4398.7,4398.6,0.736]
[1756552442639,0.68532078,4398.7,4398.6,0.736]
[1756552445840,0.4934,4398.7,4398.6,0.736]
[1756552446038,0.68530021,4398.7,4398.6,0.736]
[1756552446639,0.4934,4398.7,4398.6,0.736]
[1756552446840,0.6852979,4398.7,4398.6,0.736]
[1756552449440,0.4934,4398.7,4398.6,0.736]
[1756552449642,0.68529126,4398.7,4398.6,0.736]
[1756552452340,0.68529126,4398.7,4398.6,0.735]
[1756552453342,0.19189126,4398.7,4398.6,0.735]
[1756552453843,0.19189126,4398.7,4398.6,2.36622385]
[1756552454044,0.19189126,4398.7,4398.6,0.735]
[1756552454439,0.1864,4398.8,4398.7,0.2983]
[1756552454636,0.4662,4398.8,4398.7,0.502]
[1756552455243,0.4662,4398.8,4398.7,0.731]
[1756552455644,0.4662,4398.8,4398.7,0.502]
[1756552455845,0.4662,4398.8,4398.7,0.229]
[1756552456844,0.4662,4398.8,4398.5,0.2983]
[1756552457038,0.4662,4398.7,4398.6,0.229]
[1756552459643,0.4662,4398.5,4398.4,3.2078]
[1756552459849,0.4662,4398.5,4398.4,3.4368]
[1756552461439,0.4662,4398.5,4398.4,3.9388]
[1756552464638,3.2078,4399.4,4398.4,3.9388]
[1756552464843,0.2798,4399.2,4398.5,0.2983]
[1756552465039,0.4662,4398.7,4398.6,0.731]
[1756552466548,0.2798,4399.3,4398.6,0.4327]
[1756552466749,0.4662,4399.1,4399.0,0.2037]
[1756552466944,1.01924086,4399.1,4399.0,0.502]
[1756552470451,1.01924086,4399.1,4398.8,0.229]
[1756552470752,0.4662,4398.9,4398.8,0.229]
[1756552470951,1.01924086,4398.9,4398.8,0.229]
[1756552474263,1.01924086,4398.9,4398.4,3.2078]
[1756552474456,0.73944086,4398.8,4398.7,0.502]
[1756552475046,1.01924086,4398.8,4398.7,0.502]
[1756552489171,1.01924086,4398.8,4398.6,0.229]
[1756552489372,1.02624086,4398.7,4398.6,0.717]
[1756552489765,1.02624086,4398.7,4398.4,3.2078]
[1756552489966,0.4732,4398.7,4398.6,0.229]
[1756552490168,0.4732,4398.7,4398.6,0.717]
[1756552490862,1.03282009,4398.7,4398.6,0.717]
[1756552500487,0.2825,4398.6,4398.4,3.2078]
[1756552500688,0.1907,4398.5,4398.4,3.2078]
[1756552500879,0.4732,4398.5,4398.4,3.9248]
[1756552501479,0.4732,4398.5,4398.4,3.2078]
[1756552501680,0.1907,4397.4,4397.3,3.6958]
[1756552501885,0.4732,4397.4,4397.3,3.9248]
[1756552503881,0.4732,4397.4,4397.3,3.6958]
[1756552504083,0.4732,4397.4,4397.3,3.9248]
[1756552504490,0.4732,4397.4,4397.3,3.2078]
[1756552504679,0.4732,4397.4,4397.3,3.4368]
[1756552504883,0.4732,4397.4,4397.3,3.9248]
[1756552506593,0.4732,4397.4,4397.3,3.6958]
[1756552506795,0.4732,4397.4,4397.3,3.4368]
[1756552507093,0.4732,4397.4,4397.3,0.229]
[1756552507396,0.4732,4397.4,4397.3,0.7262]
[1756552510095,0.4732,4397.4,4397.3,0.4972]
[1756552510300,0.4732,4397.4,4396.7,3.2078]
[1756552510593,0.4732,4397.4,4397.3,0.1956]
[1756552510795,0.4732,4397.4,4397.3,0.7262]
[1756552514005,0.3064,4397.8,4397.7,0.4972]
[1756552514695,0.499,4397.8,4397.7,0.7262]
[1756552515892,3.2078,4398.3,4398.1,0.1956]
[1756552515893,0.499,4398.2,4398.1,0.1956]
[1756552516094,0.499,4398.2,4398.1,0.4972]
[1756552520100,1.05617961,4398.2,4398.1,0.4972]
[1756552522399,1.05617961,4398.2,4397.8,0.3016]
[1756552522601,0.499,4398.2,4397.8,0.3016]
[1756552523301,0.1926,4398.2,4397.5,0.5306]
[1756552523500,0.499,4397.6,4397.5,0.7262]
[1756552524995,0.499,4397.6,4397.5,0.1956]
[1756552525201,0.499,4397.4,4397.1,0.229]
[1756552525395,0.499,4397.3,4397.2,0.3016]
[1756552525603,0.499,4397.3,4397.2,0.4972]
[1756552528200,0.499,4397.3,4396.6,3.2078]
[1756552528201,0.499,4397.3,4397.1,0.229]
[1756552528404,0.1926,4397.3,4397.1,0.5306]
[1756552528602,0.499,4397.2,4397.1,0.7262]
[1756552530506,0.499,4397.2,4397.1,0.4972]
[1756552531503,0.3064,4397.7,4397.1,0.1956]
[1756552531706,0.499,4397.7,4397.6,0.4972]
[1756552532012,1.05739609,4397.7,4397.6,0.4972]
[1756552533505,1.05739609,4397.7,4397.3,0.3016]
[1756552533716,0.1926,4397.2,4397.1,0.4972]
[1756552534010,0.499,4397.2,4397.1,0.4972]
[1756552537808,0.499,4397.2,4397.1,0.7262]
[1756552539215,0.499,4397.2,4397.1,0.4972]
[1756552539420,0.499,4397.2,4397.1,0.7262]
[1756552540019,0.499,4397.2,4397.1,0.4972]
[1756552540214,0.499,4397.2,4397.1,0.7262]
[1756552544120,0.1929,4396.9,4396.7,3.2078]
[1756552544421,0.4973,4396.8,4396.7,3.2078]
[1756552546127,0.72474,4396.8,4396.7,3.2078]
[1756552546319,0.72474,4396.8,4396.3,0.229]
[1756552546522,0.4973,4396.8,4396.3,0.229]
[1756552547224,0.4973,4396.8,4396.3,0.5243]
[1756552547423,0.1929,4396.4,4396.3,0.5243]
[1756552547625,0.4973,4396.4,4396.3,0.5243]
[1756552547922,0.1929,4396.4,4396.2,3.7321]
[1756552548118,0.4973,4396.3,4396.2,3.7321]
[1756552548323,0.4973,4396.3,4396.2,3.6885]
[1756552548620,0.4973,4396.3,4396.2,3.2078]
[1756552550326,0.4973,4396.3,4396.0,0.5243]
[1756552550632,0.4973,4396.2,4396.1,0.2953]
[1756552551629,0.1929,4395.7,4395.6,0.4807]
[1756552551832,0.4973,4395.7,4395.6,0.7097]
[1756552556027,0.3044,4396.5,4395.7,0.2953]
[1756552556228,0.3044,4396.5,4395.5,3.2078]
[1756552556229,0.4973,4396.5,4396.4,0.4807]
[1756552572343,1.05697438,4396.5,4396.4,0.4807]
[1756552576346,0.75257438,4396.5,4396.1,0.229]
[1756552576546,0.2007,4396.3,4396.2,0.2901]
[1756552576744,0.5019,4396.3,4396.2,0.2901]
[1756552576940,0.3012,4396.2,4395.6,0.2901]
[1756552577144,0.2007,4395.8,4395.7,0.4793]
[1756552577352,0.5019,4395.8,4395.7,0.70677]
[1756552577859,0.3012,4395.8,4395.7,0.4793]
[1756552578150,0.3012,4396.5,4395.8,0.2901]
[1756552578349,0.3012,4396.3,4395.8,0.2901]
[1756552578549,0.5019,4396.3,4396.2,0.4793]
[1756552578951,1.0624764,4396.3,4396.2,0.4793]
[1756552583556,0.2007,4395.7,4395.6,0.229]
[1756552583756,0.5019,4395.7,4395.6,0.7083]
[1756552584451,0.5019,4395.7,4395.5,3.2078]
[1756552584649,0.5019,4395.6,4395.5,3.2078]
[1756552585248,0.5019,4395.6,4395.2,0.2901]
[1756552585454,0.3012,4395.5,4395.1,0.229]
[1756552585651,0.2007,4395.2,4395.1,0.4793]
[1756552585958,0.5019,4395.2,4395.1,0.4793]
[1756552586552,0.2007,4394.9,4394.8,3.4368]
[1756552586755,0.5019,4394.9,4394.8,3.4368]
[1756552587058,0.5019,4394.9,4394.8,3.6871]
[1756552588056,0.5019,4394.9,4394.8,3.2078]
[1756552588462,0.5019,4394.9,4394.8,3.397]
[1756552588657,0.5019,4394.9,4394.8,3.2078]
[1756552590163,0.5019,4394.9,4394.8,3.6871]
[1756552592063,0.5019,4394.9,4394.8,3.397]
[1756552592565,0.5019,4394.9,4394.8,3.6871]
[1756552593463,0.5019,4394.9,4394.8,0.4793]
[1756552595664,0.3012,4394.9,4394.8,0.4793]
[1756552595971,0.5019,4394.9,4394.8,0.4793]
[1756552598262,0.5019,4394.9,4394.4,32.761]
[1756552598565,3.2078,4395.5,4394.5,0.6982]
[1756552598566,0.4761,4394.6,4394.5,0.6982]
[1756552600668,0.4761,4394.6,4394.5,0.4692]
[1756552600869,0.4761,4394.6,4394.5,0.6982]
[1756552604674,0.4761,4394.6,4394.5,0.4692]
[1756552604885,0.4761,4394.6,4394.5,0.6982]
[1756552607776,0.4761,4394.6,4394.5,0.4692]
[1756552608172,0.4761,4394.6,4394.5,0.6982]
[1756552608374,0.4761,4394.6,4394.5,0.4692]
[1756552608674,0.4761,4394.6,4394.5,0.6982]
[1756552609891,0.4761,4394.6,4394.5,0.4692]
[1756552610080,0.4761,4394.6,4394.5,0.6982]
[1756552612278,0.4761,4394.6,4394.2,3.2078]
[1756552612279,4.70365,4394.6,4394.2,0.2795]
[1756552612581,0.41405668,4395.7,4394.1,0.10468464]
[1756552612582,0.4761,4394.2,4394.1,0.10468464]
[1756552612970,1.03404832,4394.2,4394.1,0.10468464]
[1756552613781,1.03404832,4394.2,4394.1,0.38418464]
[1756552614680,1.03421887,4394.2,4394.1,0.10468464]
[1756552620881,1.03421887,4394.2,4394.1,0.38418464]
[1756552621082,1.03421887,4394.2,4394.1,0.10468464]
[1756552622288,1.03421887,4394.2,4394.1,0.57388464]
[1756552622488,1.03421887,4394.2,4394.1,0.10468464]
[1756552622885,1.03421887,4394.2,4394.1,0.38418464]
[1756552623085,1.03421887,4394.2,4394.1,0.57388464]
[1756552623485,1.26321887,4394.2,4394.1,0.57388464]
[1756552626793,1.26321887,4394.2,4394.1,0.10468464]
[1756552632002,1.26321887,4394.2,4392.6,3.2078]
[1756552632204,0.3012,4393.4,4392.7,0.3076]
[1756552632405,0.4901,4392.8,4392.7,0.4955]
[1756552633721,0.194,4393.3,4392.1,3.2078]
[1756552633722,0.1889,4392.3,4392.2,0.4955]
[1756552634005,0.4901,4392.3,4392.2,0.4955]
[1756552636508,0.4901,4392.8,4392.7,0.1879]
[1756552637010,0.4901,4392.8,4392.7,0.4955]
[1756552638805,0.7191,4392.8,4392.7,0.4955]
[1756552640411,0.4901,4392.8,4392.7,0.4955]
[1756552640709,0.7191,4392.8,4392.7,0.4955]
[1756552642404,0.4901,4392.8,4392.7,0.4955]
[1756552642705,0.7191,4392.8,4392.7,0.4955]
[1756552646811,0.3012,4392.8,4392.7,0.4955]
[1756552647014,0.229,4392.9,4392.7,0.4955]
[1756552647213,0.5302,4392.9,4392.8,0.4955]
[1756552648008,0.3012,4392.9,4392.8,0.4955]
[1756552648213,0.3428,4393.0,4392.9,0.4955]
[1756552648907,0.1138,4393.0,4392.9,0.4955]
[1756552657618,0.4016,4393.0,4392.9,0.4955]
[1756552658213,0.5889,4393.0,4392.9,0.4955]
[1756552659317,0.1138,4393.0,4392.9,0.4955]
[1756552659924,0.4016,4393.0,4392.9,0.4955]
[1756552660117,0.5889,4393.0,4392.9,0.4955]
[1756552660720,0.1138,4393.0,4392.9,0.4955]
[1756552661622,3.2078,4393.7,4392.9,0.1879]
[1756552661820,0.4751,4393.5,4393.4,0.2029]
[1756552662023,1.03223239,4393.5,4393.4,0.496]
[1756552662320,0.4751,4393.5,4393.4,0.496]
[1756552662522,1.03220715,4393.5,4393.4,0.496]
[1756552663421,0.4751,4393.5,4393.4,0.496]
[1756552664524,0.2878,4393.6,4393.4,0.2029]
[1756552664723,0.2878,4393.6,4393.5,0.496]
[1756552665031,0.1137,4393.7,4393.6,0.496]
[1756552666127,0.1137,4393.7,4393.6,0.725]
[1756552676230,0.4015,4393.7,4393.6,0.725]
[1756552676625,0.1137,4393.7,4393.6,0.725]
[1756552676825,0.4015,4393.7,4393.6,0.725]
[1756552680537,0.1137,4393.7,4393.6,0.725]
[1756552681335,0.4015,4393.7,4393.6,0.725]
[1756552683138,0.5888,4393.7,4393.6,0.725]
[1756552683533,0.1137,4393.7,4393.6,0.725]
[1756552685631,3.2078,4395.0,4393.6,0.4319]
[1756552685840,0.2878,4394.8,4393.7,0.2931]
[1756552686037,0.1873,4393.9,4393.8,0.4319]
[1756552686238,0.4751,4393.9,4393.8,0.725]
[1756552687138,0.1137,4394.1,4393.8,0.4319]
[1756552687332,0.2867,4394.0,4393.9,0.307]
[1756552687637,0.2867,4394.0,4393.9,0.4947]
[1756552688228,0.4854,4394.0,4393.9,0.4947]
[1756552689935,0.4854,4394.0,4393.9,0.7237]
[1756552693343,0.4854,4394.0,4393.9,0.229]
[1756552694236,0.1137,4394.1,4394.0,0.307]
[1756552694431,0.1137,4394.1,4394.0,0.4947]
[1756552696943,0.1137,4394.1,4394.0,0.67625522]
[1756552697137,0.1137,4394.1,4394.0,0.4947]
[1756552697544,0.5991,4394.1,4394.0,0.7237]
[1756552698041,0.4854,4394.1,4394.0,0.7237]
[1756552710651,0.4854,4394.1,4394.0,0.4947]
[1756552710852,0.4854,4394.1,4394.0,0.7237]
[1756552714158,0.4854,4394.1,4394.0,0.4947]
[1756552714159,0.1987,4394.1,4394.0,0.4947]
[1756552714356,0.4854,4394.1,4394.0,0.7237]
[1756552716657,0.1987,4394.1,4393.9,5.308]
[1756552716951,0.1987,4394.1,4394.0,0.229]
[1756552716952,0.4854,4394.1,4394.0,0.229]
[1756552718853,0.1987,4394.1,4393.9,5.308]
[1756552719154,1.05962127,4394.0,4393.8,0.229]
[1756552719346,1.05947511,4393.9,4393.8,0.229]
[1756552721355,0.5014,4393.9,4393.8,0.229]
[1756552722957,0.5014,4393.9,4393.3,3.2078]
[1756552722958,0.5014,4393.8,4393.7,0.229]
[1756552726462,0.5014,4393.8,4393.4,0.3039]
[1756552726661,0.5014,4393.8,4393.5,0.229]
[1756552727158,0.5014,4393.8,4393.6,0.3039]
[1756552728665,0.5014,4393.8,4393.5,0.229]
[1756552729863,0.5014,4393.7,4393.6,0.4904]
[1756552731759,0.5014,4393.7,4393.5,0.229]
[1756552731954,0.3,4393.6,4393.5,0.1865]
[1756552732258,0.5014,4393.6,4393.5,0.7194]
[1756552735567,0.5014,4393.6,4393.5,0.4904]
[1756552735867,0.3,4393.5,4393.3,3.5117]
[1756552736068,0.5014,4393.5,4393.4,0.229]
[1756552736569,0.5014,4393.5,4393.4,0.7194]
[1756552740763,0.3,4394.0,4393.4,0.4155]
[1756552740965,0.1137,4394.1,4394.0,0.4904]
[1756552741162,0.1137,4394.1,4394.0,0.7194]
[1756552741365,0.3,4394.1,4394.0,0.7194]
[1756552743071,0.5014,4394.1,4394.0,0.7194]
[1756552743675,0.1137,4394.3,4394.0,0.7194]
[1756552743872,0.4137,4394.3,4394.2,0.1865]
[1756552744070,0.4137,4394.3,4394.2,0.7194]
[1756552744272,0.1137,4394.3,4394.2,0.7194]
[1756552744883,0.4137,4394.3,4394.2,0.7194]
[1756552745071,0.1137,4394.3,4394.2,0.7194]
[1756552746273,0.4137,4394.3,4394.2,0.7194]
[1756552746664,0.1137,4394.3,4394.2,0.7194]
[1756552747084,0.4044,4394.3,4394.2,0.7194]
[1756552750678,0.1137,4394.3,4394.2,0.7194]
[1756552752209,0.4044,4394.3,4394.2,0.7194]
[1756552753274,0.6078,4394.3,4394.2,0.7194]
[1756552754075,0.1137,4394.3,4394.2,0.7194]
[1756552756080,0.4044,4394.3,4394.2,0.7194]
[1756552756282,0.6078,4394.3,4394.2,0.7194]
[1756552758580,0.4941,4394.3,4394.2,0.7194]
[1756552760982,0.4941,4394.3,4394.2,3.9272]
[1756552767887,0.4941,4394.3,4394.2,3.2078]
[1756552768087,0.2907,4394.2,4394.1,0.229]
[1756552768287,1.27982666,4394.2,4394.1,0.229]
[1756552768696,1.05223665,4394.2,4394.1,0.229]
[1756552769896,0.4941,4394.1,4394.0,0.229]
[1756552770099,1.05223665,4394.1,4394.0,0.229]
[1756552774398,0.4941,4394.1,4394.0,0.229]
[1756552774590,0.2907,4394.0,4393.9,0.229]
[1756552774795,0.4941,4394.0,4393.9,0.229]
[1756552776702,0.4941,4394.0,4393.9,0.7033]
[1756552786415,0.4941,4394.0,4393.9,0.4743]
[1756552786607,0.4941,4394.0,4393.9,0.7033]
[1756552787510,0.1137,4394.2,4393.9,0.7033]
[1756552787716,0.1137,4394.2,4394.1,3.717]
[1756552792416,0.1137,4394.2,4394.1,3.946]
[1756552799424,0.482,4394.8,4394.7,0.2014]
[1756552799719,0.482,4394.8,4394.7,0.7382]
[1756552800218,0.087,4396.2,4394.7,0.4304]
[1756552800219,0.1137,4395.0,4394.7,0.4304]
[1756552800414,0.3078,4395.0,4394.9,0.2014]
[1756552800611,0.5957,4395.0,4394.9,0.7382]
[1756552807521,0.4724,4394.7,4394.6,3.5039]
[1756552807714,0.4724,4394.7,4394.6,3.7329]
[1756552808718,0.4724,4394.7,4394.6,3.932]
[1756552810127,4.4724,4394.7,4394.6,3.2078]
[1756552810822,4.4724,4394.7,4394.5,0.229]
[1756552812025,4.4724,4394.7,4394.0,3.2078]
[1756552812229,0.4724,4394.7,4394.1,0.229]
[1756552814027,0.4724,4394.7,4394.0,3.2078]
[1756552814221,0.1938,4394.2,4394.1,0.229]
[1756552814421,0.4724,4394.2,4394.1,0.229]
[1756552816924,0.4724,4394.2,4394.1,0.5251]
[1756552817325,0.4724,4394.2,4394.1,0.7242]
[1756552820431,0.1137,4394.4,4394.3,0.1991]
[1756552820649,0.3075,4394.4,4394.3,0.7242]
[1756552821023,0.5861,4394.4,4394.3,0.7242]
[1756552822527,0.1137,4394.4,4394.3,0.7242]
[1756552823329,0.3923,4394.4,4394.3,0.7242]
[1756552824926,0.5861,4394.4,4394.3,0.7242]
[1756552825328,0.2786,4394.3,4394.1,0.2961]
[1756552825628,0.2786,4394.3,4394.0,3.2078]
[1756552825629,0.4724,4394.3,4394.2,0.7242]
[1756552825828,0.4724,4394.3,4394.2,0.4952]
[1756552826030,0.4724,4394.3,4394.2,0.7242]
[1756552830232,0.1137,4394.4,4394.2,0.4281]
[1756552830433,0.3923,4394.4,4394.3,0.4952]
[1756552834042,0.1137,4394.4,4394.3,0.4952]
[1756552834238,0.4724,4395.5,4395.4,0.1991]
[1756552834531,0.4724,4395.5,4395.4,0.7242]
[1756552836739,3.3215,4396.1,4395.5,0.2961]
[1756552836936,0.4724,4396.0,4395.9,0.4952]
[1756552837133,0.4724,4396.0,4395.9,0.7242]
[1756552838839,0.1938,4396.0,4395.9,0.229]
[1756552839542,0.4819,4396.0,4395.9,0.7021]
[1756552840140,0.4819,4396.0,4395.9,0.4194]
[1756552841143,0.4819,4396.0,4395.9,0.7021]
[1756552843746,0.2881,4396.0,4395.9,0.7021]
[1756552844133,0.4797,4396.0,4395.9,0.7021]
[1756552844546,0.4797,4396.0,4395.9,0.4731]
[1756552844745,0.4797,4396.0,4395.9,0.7021]
[1756552845147,0.2881,4396.0,4395.9,0.7021]
[1756552845353,0.4797,4396.0,4395.9,0.7021]
[1756552855354,0.2881,4396.0,4395.9,0.7021]
[1756552855554,0.4797,4396.5,4396.4,0.1904]
[1756552855757,0.70717,4396.5,4396.4,0.1904]
[1756552855964,0.41907,4396.5,4396.2,0.229]
[1756552856258,0.1916,4396.3,4396.2,0.7021]
[1756552856563,0.4797,4396.3,4396.2,0.7021]
[1756552858964,0.4797,4396.3,4396.2,0.4194]
[1756552859264,0.4797,4396.3,4396.2,0.229]
[1756552860760,0.4797,4396.3,4396.0,0.2827]
[1756552861063,0.1916,4396.1,4396.0,0.7021]
[1756552861253,0.4797,4396.1,4396.0,0.7021]
[1756552861760,0.1916,4396.1,4395.6,0.2827]
[1756552862065,0.4797,4396.0,4395.9,0.229]
[1756552862266,0.4797,4396.0,4395.9,0.7021]
[1756552871566,0.41908,4396.0,4395.5,3.4878]
[1756552871769,0.5015,4395.1,4395.0,3.2078]
[1756552872068,0.1937,4394.5,4394.4,3.2078]
[1756552872268,0.5015,4394.5,4394.4,3.2078]
[1756552872870,0.5015,4394.5,4394.4,3.6812]
[1756552873473,3.2078,4395.4,4394.4,3.6812]
[1756552873663,0.3078,4395.2,4394.5,0.28]
[1756552873863,0.55624122,4395.1,4394.5,0.28]
[1756552874066,0.5015,4394.6,4394.5,0.4734]
[1756552880267,0.1137,4394.9,4394.5,0.4734]
[1756552880465,0.1937,4394.8,4394.7,0.1934]
[1756552880668,0.5015,4394.8,4394.7,0.4734]
[1756552884975,0.5015,4394.8,4394.7,0.1934]
[1756552887980,0.5015,4394.8,4394.5,0.28]
[1756552888182,0.22753,4395.3,4394.6,0.229]
[1756552888375,0.1937,4394.7,4394.6,0.229]
[1756552888581,0.1937,4394.7,4394.6,0.509]
[1756552888891,0.1937,4394.7,4394.6,0.7024]
[1756552890177,0.5015,4394.7,4394.6,0.7024]
[1756552893282,0.5015,4394.7,4394.6,0.4734]
[1756552893582,0.5015,4394.7,4394.6,0.7024]
[1756552895182,0.1937,4394.7,4394.6,0.7024]
[1756552895983,0.5015,4394.7,4394.6,0.7024]
[1756552896381,0.5015,4394.7,4394.4,3.2078]
[1756552896588,0.5015,4394.6,4394.5,0.229]
[1756552896879,0.5015,4394.5,4394.0,0.28]
[1756552897079,0.45654,4395.3,4393.7,0.3007]
[1756552897080,0.1913,4393.8,4393.7,0.3007]
[1756552897285,0.1913,4393.8,4393.7,0.5297]
[1756552897481,0.4841,4393.8,4393.7,0.3007]
[1756552897685,0.4841,4393.8,4393.7,0.229]
[1756552898287,0.4841,4393.8,4393.7,0.5297]
[1756552898585,0.4841,4393.8,4393.7,0.5022]
[1756552900889,0.4841,4393.8,4393.6,0.229]
[1756552901085,0.4841,4393.8,4393.4,0.3007]
[1756552901289,0.4841,4393.8,4393.5,0.5297]
[1756552901588,0.4841,4393.6,4393.5,0.5297]
[1756552902281,0.1913,4393.6,4393.4,0.229]
[1756552902490,0.4841,4393.5,4393.4,0.229]
[1756552903989,0.1913,4393.5,4393.1,0.3007]
[1756552904288,0.4841,4393.2,4393.1,0.7312]
[1756552910495,0.4841,4393.2,4393.1,0.5022]
[1756552912097,0.2928,4393.6,4393.5,0.5022]
[1756552912297,0.4841,4393.6,4393.5,0.5022]
[1756552925107,1.04360243,4393.6,4393.5,0.5022]
[1756552926305,1.04360243,4393.6,4393.5,0.2801902]
[1756552926503,1.04360243,4393.6,4393.5,0.4816902]
[1756552928107,1.04437291,4393.6,4393.5,0.4816902]
[1756552928512,0.19897291,4393.6,4393.5,0.4816902]
[1756552928807,0.39227291,4393.6,4393.5,0.4816902]
[1756552930511,0.51647291,4393.6,4393.5,0.4816902]
[1756552936313,0.51647291,4393.6,4393.5,0.25967984]
[1756552947022,0.3037,4393.5,4393.1,0.229]
[1756552947320,0.19897291,4393.4,4393.3,0.5019]
[1756552947931,0.50267291,4393.4,4393.3,0.5019]
[1756552948227,0.69597291,4393.4,4393.3,0.5019]
[1756552955837,0.69597291,4393.4,4393.3,0.2971]
[1756552956332,0.39227291,4393.4,4393.0,0.2971]
[1756552956632,0.39227291,4393.4,4390.6,8.857]
[1756552956633,0.497,4392.8,4392.6,0.2971]
[1756552956935,0.69597291,4392.7,4392.6,0.2971]
[1756552957932,0.69597291,4392.7,4392.2,3.4368]
[1756552958131,0.1867,4392.4,4392.3,0.4959]
[1756552958327,0.4931,4392.4,4392.3,0.4959]
[1756552961833,0.3064,4393.0,4392.3,0.1954]
[1756552962037,1.04938628,4392.9,4392.8,0.4959]
[1756552962239,1.27704629,4392.9,4392.8,0.4959]
[1756552962537,1.04938628,4392.9,4392.8,0.4959]
[1756552971340,0.3064,4392.8,4392.3,0.3005]
[1756552971538,0.1867,4392.4,4392.3,0.4959]
[1756552971750,0.4931,4392.4,4392.3,0.4959]
[1756552973246,0.4931,4392.4,4392.3,0.7249]
[1756552973843,0.4931,4392.4,4392.3,0.4959]
[1756552980538,0.4931,4393.2,4393.1,0.4959]
[1756552980743,1.04914249,4393.2,4393.1,0.4959]
[1756552980949,3.2078,4393.3,4393.1,0.4959]
[1756552981145,3.2078,4393.3,4393.2,0.4959]
[1756552981345,3.76386678,4393.3,4393.2,3.065476]
[1756552981950,4.25696678,4393.3,4393.2,2.569576]
[1756552982151,4.48458678,4393.3,4393.2,2.569576]
[1756552982352,8.48458678,4393.3,4393.2,2.569576]
[1756552982848,8.25696678,4393.3,4393.2,2.569576]
[1756552985151,8.25762726,4393.3,4393.2,2.870076]
[1756552985551,8.48662726,4393.3,4393.2,2.870076]
[1756552985746,4.25762726,4393.3,4393.2,3.065476]
[1756552985940,0.55672726,4393.3,4393.2,3.065476]
[1756552987046,3.5142,4393.8,4393.2,7.294476]
[1756552987351,1.05795678,4393.7,4393.6,0.4788]
[1756552989948,0.55675678,4393.7,4393.6,0.4788]
[1756552990143,1.61142409,4394.9,4393.6,0.4788]
[1756552990144,3.2078,4394.6,4394.5,0.1907]
[1756552990344,3.2078,4394.6,4394.5,0.4788]
[1756552990548,3.5065,4394.6,4394.5,0.4788]
[1756552991152,0.2987,4394.6,4394.5,0.4788]
[1756552991454,0.2987,4395.2,4394.6,0.2881]
[1756552991657,0.5012,4395.0,4394.9,0.1907]
[1756552991857,0.5012,4395.0,4394.9,0.4788]
[1756552995353,0.5012,4395.0,4394.9,3.048376]
[1756552995852,0.229,4395.2,4395.0,0.2881]
[1756552996049,0.7302,4395.2,4395.1,0.4788]
[1756553004866,3.2078,4395.4,4395.3,0.1907]
[1756553005070,3.2078,4395.4,4395.3,0.4788]
[1756553006272,0.2987,4395.4,4395.3,0.4788]
[1756553006674,0.4305,4395.7,4395.6,0.1907]
[1756553006872,0.4305,4395.7,4395.6,0.4788]
[1756553007170,0.7292,4395.7,4395.6,0.4788]
[1756553014376,1.28357551,4395.7,4395.6,0.4788]
[1756553017669,0.55437551,4395.7,4395.6,0.4788]
[1756553017867,0.228,4396.3,4395.7,0.3042]
[1756553018176,0.7229,4396.3,4396.2,0.4925]
[1756553018476,1.27813137,4396.3,4396.2,0.4925]
[1756553020276,1.27813137,4396.3,4396.2,3.062076]
[1756553020476,1.05013137,4396.3,4396.2,3.062076]
[1756553025091,1.05011703,4396.3,4396.2,3.062076]
[1756553031587,0.55521703,4396.3,4396.2,3.062076]
[1756553033883,3.2078,4396.5,4396.4,0.1883]
[1756553034088,3.76294631,4396.5,4396.4,0.4925]
[1756553034889,3.2078,4396.5,4396.4,0.4925]
[1756553035285,3.2078,4396.5,4396.4,3.062076]
[1756553035589,0.3015,4396.7,4396.4,3.062076]
[1756553035790,0.4949,4396.7,4396.6,0.1883]
[1756553035990,1.05001744,4396.7,4396.6,0.4925]
[1756553039888,0.55511744,4396.7,4396.6,0.4925]
[1756553040489,0.85661744,4396.7,4396.6,0.4925]
[1756553040787,0.55511744,4396.7,4396.6,0.4925]
[1756553040990,0.3015,4397.4,4396.6,7.62355]
[1756553041194,0.55512985,4397.3,4397.2,0.4925]
[1756553041603,0.1934,4397.4,4397.3,0.4925]
[1756553041792,0.74840501,4397.4,4397.3,0.4925]
[1756553042186,1.04990501,4397.4,4397.3,0.4925]
[1756553042587,3.2078,4397.6,4397.5,0.1883]